[Event "44th Chess Olympiad Women 2022"]
[Site "Chennai"]
[Date "2022.08.07"]
[Round "9.27"]
[White "Ryjanova, Julia"]
[Black "Cordero, Daniela"]
[Result "1-0"]
[WhiteElo "2284"]
[BlackElo "2005"]
[Annotator "RC"]
[PlyCount "231"]
[EventDate "2022.??.??"]
[TimeControl "60"]

1. d4 {[%emt 0:00:03]} e6 {[%emt 0:00:13]} 2. c4 {[%emt 0:00:20]} f5 {[%emt 0:
00:00]} 3. Nf3 {[%emt 0:00:26]} Nf6 {[%emt 0:00:09]} 4. g3 {[%emt 0:00:12]} d5
{[%emt 0:00:48]} 5. Bf4 {[%emt 0:00:25]} Be7 {[%emt 0:00:48]} 6. e3 {[%emt 0:
00:00]} O-O {[%emt 0:04:44]} 7. Be2 {[%emt 0:01:56]} b6 {[%emt 0:12:48]} 8. Nc3
{[%emt 0:14:41]} a6 {[%emt 0:10:14]} 9. Rc1 {[%emt 0:01:54]} Bb7 {[%emt 0:00:
00]} 10. Qb3 {[%emt 0:09:21]} Nc6 {[%emt 0:14:29]} 11. cxd5 {[%emt 0:20:46]}
Na5 {[%emt 0:09:10]} 12. Qc2 {[%emt 0:02:49]} Nxd5 {[%emt 0:10:25]} 13. O-O {
[%emt 0:06:12]} Nxf4 {[%emt 0:02:51]} 14. exf4 {[%emt 0:03:59]} Rf6 {[%emt 0:
00:00]} 15. a3 {[%emt 0:03:14]} Bd6 {[%emt 0:02:38]} 16. Rfd1 {[%emt 0:03:52]}
Qe8 {[%emt 0:04:05]} 17. b4 {[%emt 0:06:30]} Nc4 {[%emt 0:01:33]} 18. Qa2 {
[%emt 0:05:08]} b5 {[%emt 0:00:09]} 19. d5 {[%emt 0:04:19]} Nb6 {[%emt 0:01:10]
} 20. dxe6 {[%emt 0:00:55]} Qxe6 {[%emt 0:00:58]} 21. Qxe6+ {[%emt 0:02:24]}
Rxe6 {[%emt 0:00:01]} 22. Nd4 {[%emt 0:00:13]} Rf6 {[%emt 0:00:16]} 23. Re1 {
[%emt 0:02:01]} Kf8 {[%emt 0:01:05]} 24. Bd3 {[%emt 0:03:55]} g6 {[%emt 0:00:
00]} 25. Ne6+ {[%emt 0:00:27]} Kf7 {[%emt 0:00:48]} 26. Ng5+ {[%emt 0:00:51]}
Kg7 {[%emt 0:00:10]} 27. Nb1 {[%emt 0:01:13]} Nd5 {[%emt 0:01:30]} 28. Nd2 {
[%emt 0:00:38]} h6 {[%emt 0:01:05]} 29. Ne6+ {[%emt 0:00:48]} Kf7 {[%emt 0:00:
00]} 30. Nd4 {[%emt 0:00:03]} Ne7 {[%emt 0:03:19]} 31. N2b3 {[%emt 0:00:35]}
Bd5 {[%emt 0:00:50]} 32. Nc5 {[%emt 0:00:50]} Kg7 {[%emt 0:00:39]} 33. Nce6+ {
[%emt 0:01:04]} Bxe6 {[%emt 0:00:19]} 34. Nxe6+ {[%emt 0:00:06]} Kf7 {[%emt 0:
00:00]} 35. Bb1 {[%emt 0:01:14]} Rc8 {[%emt 0:00:57]} 36. Ba2 {[%emt 0:00:20]}
Ke8 {[%emt 0:00:18]} 37. Nc5 {[%emt 0:00:28]} Bxc5 {[%emt 0:00:50]} 38. Rxc5 {
[%emt 0:00:13]} c6 {[%emt 0:00:22]} 39. Be6 {[%emt 0:01:47]} Rc7 {[%emt 0:00:
00]} 40. f3 {[%emt 0:00:32]} Kf8 {[%emt 0:00:49]} 41. Kf2 {[%emt 0:05:05]} Ra7
{[%emt 0:12:42]} 42. Rce5 {[%emt 0:06:53]} a5 {[%emt 0:02:54]} 43. Rd1 {
[%emt 0:01:10]} axb4 {[%emt 0:05:37]} 44. axb4 {[%emt 0:00:07]} Kg7 {[%emt 0:
00:00]} 45. Rd4 {[%emt 0:05:46]} Rf8 {[%emt 0:01:48]} 46. g4 {[%emt 0:01:41]}
fxg4 {[%emt 0:01:25]} 47. fxg4 {[%emt 0:00:05]} Rf6 {[%emt 0:02:55]} 48. Re3 {
[%emt 0:05:34]} Rc7 {[%emt 0:02:00]} 49. Kg3 {[%emt 0:01:13]} h5 {[%emt 0:00:
00]} 50. h3 {[%emt 0:01:14]} hxg4 {[%emt 0:00:07]} 51. hxg4 {[%emt 0:00:13]} c5
{[%emt 0:00:58]} 52. bxc5 {[%emt 0:01:30]} Rxc5 {[%emt 0:00:12]} 53. Rd7 {
[%emt 0:00:13]} Kf8 {[%emt 0:00:06]} 54. Rd8+ {[%emt 0:05:23]} Kg7 {[%emt 0:00:
00]} 55. Re8 {[%emt 0:00:52]} Nd5 {[%emt 0:00:58]} 56. Rg8+ {[%emt 0:01:53]}
Kh7 {[%emt 0:00:11]} 57. Bxd5 {[%emt 0:00:17]} Rxd5 {[%emt 0:00:08]} 58. Rb8 {
[%emt 0:00:09]} Kg7 {[%emt 0:01:29]} 59. g5 {[%emt 0:00:39]} Rf7 {[%emt 0:00:
00]} 60. Ree8 {[%emt 0:00:19]} Rfd7 {[%emt 0:00:23]} 61. Rg8+ {[%emt 0:00:17]}
Kh7 {[%emt 0:00:16]} 62. Rge8 {[%emt 0:01:08]} Kg7 {[%emt 0:00:34]} 63. Kg4 {
[%emt 0:00:11]} Kh7 {[%emt 0:00:36]} 64. Rf8 {[%emt 0:00:45]} Kg7 {[%emt 0:00:
00]} 65. Rfe8 {[%emt 0:00:39]} Kh7 {[%emt 0:00:17]} 66. Re6 {[%emt 0:00:14]}
Rf7 {[%emt 0:01:49]} 67. Ree8 {[%emt 0:00:40]} Rfd7 {[%emt 0:00:00]} 68. Re3 {
[%emt 0:00:35]} Kg7 {[%emt 0:00:15]} 69. Rb3 {[%emt 0:00:30]} Rd4 {[%emt 0:00:
00]} 70. R8xb5 {[%emt 0:00:35]} Rf7 {[%emt 0:00:07]} 71. Rf3 {[%emt 0:00:14]}
Ra4 {[%emt 0:00:41]} 72. Kg3 {[%emt 0:00:16]} Rc4 {[%emt 0:00:14]} 73. Rb8 {
[%emt 0:00:31]} Ra4 {[%emt 0:00:23]} 74. Rf2 {[%emt 0:00:20]} Rc4 {[%emt 0:00:
00]} 75. Rb1 {[%emt 0:00:07]} Ra4 {[%emt 0:00:40]} 76. Rh1 {[%emt 0:00:06]}
Ra3+ {[%emt 0:00:24]} 77. Kg4 {[%emt 0:00:07]} Ra4 {[%emt 0:00:10]} 78. Rh4 {
[%emt 0:00:12]} Rb4 {[%emt 0:01:15]} 79. Rf3 {[%emt 0:00:07]} Ra4 {[%emt 0:00:
00]} 80. Kg3 {[%emt 0:00:05]} Rf5 {[%emt 0:00:13]} 81. Rb3 {[%emt 0:00:26]} Rf7
{[%emt 0:00:10]} 82. f5 {[%emt 0:00:25]} Rxh4 {[%emt 0:01:11]} 83. f6+ {
[%emt 0:00:05]} Kh7 {[%emt 0:00:07]} 84. Kxh4 {[%emt 0:00:04]} Rc7 {[%emt 0:00:
00]} 85. Rb4 {[%emt 0:02:18]} Ra7 {[%emt 0:00:32]} 86. Kg4 {[%emt 0:00:13]} Rc7
{[%emt 0:00:30]} 87. Kf4 {[%emt 0:00:19]} Rc5 {[%emt 0:00:30]} 88. Rb7+ {
[%emt 0:00:21]} Kh8 {[%emt 0:00:09]} 89. Re7 {[%emt 0:00:55]} Rf5+ {[%emt 0:00:
00]} 90. Kg4 {[%emt 0:02:11]} Rf1 {[%emt 0:00:12]} 91. Ra7 {[%emt 0:00:29]} Rf2
{[%emt 0:00:34]} 92. Ra3 {[%emt 0:00:22]} Kg8 {[%emt 0:00:30]} 93. Rf3 {
[%emt 0:01:54]} Ra2 {[%emt 0:00:47]} 94. Rf4 {[%emt 0:00:00]} Rg2+ {[%emt 0:00:
00]} 95. Kh4 {[%emt 0:00:00]} Ra2 {[%emt 0:00:50]} 96. Rb4 {[%emt 0:00:20]} Rf2
{[%emt 0:00:23]} 97. Rb7 {[%emt 0:01:04]} Kh8 {[%emt 0:00:11]} 98. Rb5 {
[%emt 0:00:19]} Kg8 {[%emt 0:00:47]} 99. Kg3 {[%emt 0:00:13]} Rf1 {[%emt 0:00:
00]} 100. Rb8+ {[%emt 0:00:22]} Kh7 {[%emt 0:00:08]} 101. Rb2 {[%emt 0:00:35]}
Rf5 {[%emt 0:01:18]} 102. Kg4 {[%emt 0:00:12]} Ra5 {[%emt 0:00:39]} 103. Rh2+ {
[%emt 0:00:22]} Kg8 {[%emt 0:00:06]} 104. Rh6 {[%emt 0:00:07]} Ra4+ {[%emt 0:
00:00]} 105. Kf3 {[%emt 0:00:10]} Ra3+ {[%emt 0:00:38]} 106. Ke4 {[%emt 0:00:
00]} Ra4+ {[%emt 0:00:09]} 107. Kd3 {[%emt 0:00:24]} Kf7 {[%emt 0:01:13]} 108.
Rh7+ {[%emt 0:00:10]} Ke6 {[%emt 0:00:33]} 109. Re7+ {[%emt 0:00:18]} Kd6 {
[%emt 0:00:10]} 110. Re8 {[%emt 0:01:34]} Rf4 {[%emt 0:00:21]} 111. Rg8 {
[%emt 0:01:09]} Ke6 {[%emt 0:00:58]} 112. Rxg6 {[%emt 0:00:22]} Kf7 {[%emt 0:
00:00]} 113. Rg7+ {[%emt 0:00:07]} Kf8 {[%emt 0:00:28]} 114. Ke3 {[%emt 0:00:
00]} Rg4 {[%emt 0:00:06]} 115. Kf3 {[%emt 0:00:09]} Ra4 {[%emt 0:00:22]} 116.
Rb7 {[%emt 0:00:28]} 1-0

[Event "44th Chess Olympiad Women 2022"]
[Site "Chennai"]
[Date "2022.08.07"]
[Round "9.28"]
[White "Acevedo Mendez, Lisseth"]
[Black "Bail, Ellen Larissa"]
[Result "0-1"]
[WhiteElo "1784"]
[BlackElo "1892"]
[Annotator "NA"]
[PlyCount "81"]
[EventDate "2022.??.??"]
[TimeControl "60"]

1. d4 {[%emt 0:00:04]} d5 {[%emt 0:00:15]} 2. Bf4 {[%emt 0:00:12]} Nf6 {
[%emt 0:00:09]} 3. Nf3 {[%emt 0:00:15]} e6 {[%emt 0:00:08]} 4. e3 {[%emt 0:00:
00]} Bd6 {[%emt 0:00:49]} 5. Bg3 {[%emt 0:00:07]} O-O {[%emt 0:00:16]} 6. Bd3 {
[%emt 0:00:46]} c5 {[%emt 0:00:30]} 7. c3 {[%emt 0:00:12]} Qc7 {[%emt 0:01:00]}
8. Nbd2 {[%emt 0:03:50]} Nbd7 {[%emt 0:01:50]} 9. Bxd6 {[%emt 0:04:44]} Qxd6 {
[%emt 0:00:09]} 10. O-O {[%emt 0:00:04]} e5 {[%emt 0:02:18]} 11. dxe5 {[%emt 0:
00:00]} Nxe5 {[%emt 0:00:14]} 12. Nxe5 {[%emt 0:00:04]} Qxe5 {[%emt 0:00:09]}
13. Nf3 {[%emt 0:03:31]} Qc7 {[%emt 0:04:19]} 14. Rc1 {[%emt 0:09:57]} c4 {
[%emt 0:10:00]} 15. Be2 {[%emt 0:00:06]} b5 {[%emt 0:04:37]} 16. Nd4 {[%emt 0:
00:00]} Qb6 {[%emt 0:03:47]} 17. a3 {[%emt 0:02:32]} Rd8 {[%emt 0:18:06]} 18.
Bf3 {[%emt 0:11:56]} a5 {[%emt 0:05:23]} 19. b3 {[%emt 0:12:59]} Ra7 {[%emt 0:
00:00]} 20. Rb1 {[%emt 0:03:01]} Ba6 {[%emt 0:05:36]} 21. Qc2 {[%emt 0:03:42]}
Rc7 {[%emt 0:03:14]} 22. b4 {[%emt 0:01:13]} a4 {[%emt 0:03:49]} 23. Qf5 {
[%emt 0:01:01]} Bc8 {[%emt 0:01:08]} 24. Qf4 {[%emt 0:04:20]} Re7 {[%emt 0:00:
00]} 25. h3 {[%emt 0:04:02]} Ne8 {[%emt 0:02:55]} 26. Rbd1 {[%emt 0:07:01]} Nc7
{[%emt 0:01:18]} 27. Qg5 {[%emt 0:03:08]} Kf8 {[%emt 0:01:39]} 28. Rd2 {
[%emt 0:07:09]} Ne6 {[%emt 0:07:47]} 29. Qh4 {[%emt 0:01:58]} Nxd4 {[%emt 0:00:
00]} 30. Rxd4 {[%emt 0:00:42]} Re5 {[%emt 0:02:47]} 31. Qxh7 {[%emt 0:03:03]}
Rg5 {[%emt 0:00:21]} 32. Qh8+ {[%emt 0:01:49]} Ke7 {[%emt 0:00:11]} 33. Qh4 {
[%emt 0:00:03]} Qg6 {[%emt 0:00:41]} 34. Rxd5 {[%emt 0:02:33]} Rdxd5 {[%emt 0:
00:00]} 35. Bxd5 {[%emt 0:00:04]} Qf6 {[%emt 0:01:33]} 36. Rd1 {[%emt 0:01:17]}
Rxg2+ {[%emt 0:00:26]} 37. Bxg2 {[%emt 0:01:27]} Qxh4 {[%emt 0:00:09]} 38. Rd4
{[%emt 0:00:19]} Qf6 {[%emt 0:00:38]} 39. Re4+ {[%emt 0:01:39]} Be6 {[%emt 0:
00:00]} 40. Rd4 {[%emt 0:00:03]} Qg6 {[%emt 0:00:16]} 41. Rf4 {[%emt 0:00:26]}
0-1

[Event "44th Chess Olympiad Women 2022"]
[Site "Chennai"]
[Date "2022.08.07"]
[Round "9.28"]
[White "Alboredo, Julia"]
[Black "Ptacnikova, Lenka"]
[Result "1-0"]
[WhiteElo "2264"]
[BlackElo "2066"]
[Annotator "RC"]
[PlyCount "65"]
[EventDate "2022.??.??"]
[TimeControl "60"]

1. e4 {[%emt 0:00:04]} c5 {[%emt 0:00:11]} 2. Nf3 {[%emt 0:00:17]} e6 {[%emt 0:
00:00]} 3. d4 {[%emt 0:00:14]} cxd4 {[%emt 0:00:04]} 4. Nxd4 {[%emt 0:00:13]}
Nc6 {[%emt 0:00:08]} 5. Nc3 {[%emt 0:00:30]} Qc7 {[%emt 0:00:14]} 6. Be3 {
[%emt 0:00:32]} a6 {[%emt 0:00:29]} 7. a3 {[%emt 0:00:23]} Nf6 {[%emt 0:02:26]}
8. f4 {[%emt 0:00:19]} d6 {[%emt 0:05:12]} 9. Qf3 {[%emt 0:00:14]} Bd7 {
[%emt 0:03:50]} 10. O-O-O {[%emt 0:05:22]} Be7 {[%emt 0:04:29]} 11. g4 {
[%emt 0:09:40]} Nxd4 {[%emt 0:10:23]} 12. Bxd4 {[%emt 0:14:58]} e5 {[%emt 0:00:
00]} 13. fxe5 {[%emt 0:00:18]} dxe5 {[%emt 0:01:46]} 14. Qg3 {[%emt 0:00:32]}
Bd6 {[%emt 0:04:34]} 15. Bf2 {[%emt 0:16:28]} Rc8 {[%emt 0:10:54]} 16. Qd3 {
[%emt 0:09:05]} Nxg4 {[%emt 0:22:47]} 17. Bg3 {[%emt 0:16:44]} Bc5 {[%emt 0:00:
00]} 18. Nd5 {[%emt 0:01:06]} Qc6 {[%emt 0:01:17]} 19. Bh3 {[%emt 0:01:12]}
Qh6+ {[%emt 0:02:45]} 20. Bf4 {[%emt 0:12:30]} Qc6 {[%emt 0:09:59]} 21. Bxg4 {
[%emt 0:03:17]} Bxg4 {[%emt 0:00:22]} 22. Bxe5 {[%emt 0:00:22]} f6 {[%emt 0:00:
00]} 23. Qg3 {[%emt 0:03:48]} Bd6 {[%emt 0:07:01]} 24. Rd2 {[%emt 0:00:29]}
Bxe5 {[%emt 0:00:18]} 25. Qxg4 {[%emt 0:00:07]} g6 {[%emt 0:00:46]} 26. Rhd1 {
[%emt 0:00:58]} Rf8 {[%emt 0:00:39]} 27. Nb4 {[%emt 0:00:19]} f5 {[%emt 0:00:
00]} 28. Nxc6 {[%emt 0:00:38]} Bxb2+ {[%emt 0:00:05]} 29. Kxb2 {[%emt 0:00:12]}
fxg4 {[%emt 0:00:02]} 30. Rd8+ {[%emt 0:00:18]} Kf7 {[%emt 0:00:05]} 31. Rf1+ {
[%emt 0:00:34]} Kg7 {[%emt 0:00:04]} 32. Rfxf8 {[%emt 0:00:17]} Rxc6 {[%emt 0:
00:00]} 33. e5 {[%emt 0:02:00]} 1-0

[Event "44th Chess Olympiad Women 2022"]
[Site "Chennai"]
[Date "2022.08.07"]
[Round "9.28"]
[White "Gazola, Vanessa Ramos"]
[Black "Thorsteinsdottir, Hallgerdur"]
[Result "1-0"]
[WhiteElo "2000"]
[BlackElo "1934"]
[Annotator "NA RC"]
[PlyCount "55"]
[EventDate "2022.??.??"]
[TimeControl "60"]

1. d4 {[%emt 0:00:03]} Nf6 {[%emt 0:00:10]} 2. c4 {[%emt 0:00:11]} e6 {[%emt 0:
00:00]} 3. Nf3 {[%emt 0:00:07]} b6 {[%emt 0:00:12]} 4. a3 {[%emt 0:01:41]} Bb7
{[%emt 0:00:18]} 5. Nc3 {[%emt 0:00:08]} d5 {[%emt 0:00:22]} 6. cxd5 {[%emt 0:
00:00]} Nxd5 {[%emt 0:00:27]} 7. e3 {[%emt 0:00:11]} Be7 {[%emt 0:00:47]} 8.
Bb5+ {[%emt 0:00:20]} c6 {[%emt 0:00:44]} 9. Bd3 {[%emt 0:00:07]} Nxc3 {
[%emt 0:00:45]} 10. bxc3 {[%emt 0:00:05]} O-O {[%emt 0:00:27]} 11. O-O {
[%emt 0:00:17]} c5 {[%emt 0:00:47]} 12. Qe2 {[%emt 0:03:55]} Nc6 {[%emt 0:00:
00]} 13. Bb2 {[%emt 0:01:33]} Rc8 {[%emt 0:09:00]} 14. Rad1 {[%emt 0:08:32]}
Qc7 {[%emt 0:03:37]} 15. Rfe1 {[%emt 0:00:18]} Rfd8 {[%emt 0:03:30]} 16. e4 {
[%emt 0:06:01]} Na5 {[%emt 0:24:29]} 17. d5 {[%emt 0:16:12]} c4 {[%emt 0:02:26]
} 18. Bb1 {[%emt 0:00:42]} exd5 {[%emt 0:02:26]} 19. exd5 {[%emt 0:12:39]} Bf6
{[%emt 0:12:37]} 20. d6 {[%emt 0:24:53]} Qc6 {[%emt 0:01:02]} 21. d7 {[%emt 0:
00:00]} Rb8 {[%emt 0:00:36]} 22. Bc1 {[%emt 0:04:27]} g5 {[%emt 0:11:01]} 23.
Qc2 {[%emt 0:02:34]} Rxd7 {[%emt 0:04:51]} 24. Qxh7+ {[%emt 0:01:43]} Kf8 {
[%emt 0:00:06]} 25. Rxd7 {[%emt 0:03:21]} Qxd7 {[%emt 0:00:16]} 26. Bxg5 {
[%emt 0:00:07]} Bg7 {[%emt 0:02:30]} 27. Be7+ {[%emt 0:00:34]} Qxe7 {[%emt 0:
00:00]} 28. Rxe7 {[%emt 0:00:05]} 1-0

[Event "44th Chess Olympiad Women 2022"]
[Site "Chennai"]
[Date "2022.08.07"]
[Round "9.28"]
[White "Johannsdottir, Johanna Bjorg"]
[Black "Librelato, Kathie Goulart"]
[Result "0-1"]
[WhiteElo "1976"]
[BlackElo "2255"]
[Annotator "RC"]
[PlyCount "74"]
[EventDate "2022.??.??"]
[TimeControl "60"]

1. e4 {[%emt 0:00:04]} e5 {[%emt 0:00:08]} 2. Nf3 {[%emt 0:00:04]} Nc6 {
[%emt 0:00:05]} 3. Bc4 {[%emt 0:00:05]} Nf6 {[%emt 0:00:04]} 4. Ng5 {[%emt 0:
00:00]} d5 {[%emt 0:00:18]} 5. exd5 {[%emt 0:00:04]} Na5 {[%emt 0:01:16]} 6.
Bb5+ {[%emt 0:00:08]} c6 {[%emt 0:00:05]} 7. dxc6 {[%emt 0:00:03]} bxc6 {
[%emt 0:00:04]} 8. Bd3 {[%emt 0:00:07]} Nd5 {[%emt 0:01:00]} 9. Nf3 {[%emt 0:
00:00]} Bd6 {[%emt 0:00:52]} 10. O-O {[%emt 0:00:08]} O-O {[%emt 0:00:08]} 11.
Re1 {[%emt 0:00:38]} f5 {[%emt 0:01:21]} 12. Bf1 {[%emt 0:05:59]} e4 {[%emt 0:
00:00]} 13. Nd4 {[%emt 0:00:05]} Qh4 {[%emt 0:00:38]} 14. g3 {[%emt 0:01:46]}
Qf6 {[%emt 0:00:05]} 15. c3 {[%emt 0:01:33]} f4 {[%emt 0:01:02]} 16. Rxe4 {
[%emt 0:23:40]} fxg3 {[%emt 0:00:56]} 17. f3 {[%emt 0:00:37]} Qh6 {[%emt 0:00:
00]} 18. h4 {[%emt 0:01:13]} Nf4 {[%emt 0:00:24]} 19. d3 {[%emt 0:01:38]} Qxh4
{[%emt 0:00:48]} 20. Qc2 {[%emt 0:00:20]} Bh3 {[%emt 0:09:03]} 21. Bxf4 {
[%emt 0:02:52]} Bxf4 {[%emt 0:00:21]} 22. Bxh3 {[%emt 0:02:06]} Qxh3 {[%emt 0:
00:00]} 23. Na3 {[%emt 0:09:17]} Rf6 {[%emt 0:09:53]} 24. Qg2 {[%emt 0:00:54]}
Qh6 {[%emt 0:00:04]} 25. Rae1 {[%emt 0:00:39]} Nb7 {[%emt 0:00:51]} 26. Ne6 {
[%emt 0:05:01]} Nd6 {[%emt 0:04:15]} 27. Rxf4 {[%emt 0:02:42]} Rxe6 {[%emt 0:
00:00]} 28. Rxe6 {[%emt 0:01:05]} Qxf4 {[%emt 0:00:17]} 29. Qe2 {[%emt 0:02:32]
} Rf8 {[%emt 0:01:34]} 30. Nc2 {[%emt 0:01:15]} Nf5 {[%emt 0:04:28]} 31. Re8 {
[%emt 0:03:47]} Qh6 {[%emt 0:04:19]} 32. Rxf8+ {[%emt 0:04:10]} Kxf8 {[%emt 0:
00:00]} 33. Nb4 {[%emt 0:05:20]} Nh4 {[%emt 0:04:35]} 34. Nc2 {[%emt 0:00:29]}
Qc1+ {[%emt 0:01:34]} 35. Ne1 {[%emt 0:00:07]} Qxe1+ {[%emt 0:00:16]} 36. Qxe1
{[%emt 0:00:10]} Nxf3+ {[%emt 0:00:03]} 37. Kf1 {[%emt 0:00:05]} g2+ {[%emt 0:
00:00]} 0-1

[Event "44th Chess Olympiad Women 2022"]
[Site "Chennai"]
[Date "2022.08.07"]
[Round "9.29"]
[White "Antonio, Renelsa Taiane"]
[Black "Hapala, Elisabeth"]
[Result "0-1"]
[WhiteElo "1471"]
[BlackElo "2113"]
[Annotator "NA"]
[PlyCount "96"]
[EventDate "2022.??.??"]
[TimeControl "60"]

1. e4 {[%emt 0:00:10]} c5 {[%emt 0:00:03]} 2. Nc3 {[%emt 0:00:17]} e6 {[%emt 0:
00:00]} 3. Nf3 {[%emt 0:00:32]} a6 {[%emt 0:00:18]} 4. a4 {[%emt 0:00:46]} Qc7
{[%emt 0:03:26]} 5. Be2 {[%emt 0:01:57]} Nc6 {[%emt 0:00:58]} 6. d3 {[%emt 0:
00:00]} g6 {[%emt 0:06:42]} 7. Be3 {[%emt 0:02:14]} d6 {[%emt 0:00:06]} 8. d4 {
[%emt 0:02:35]} cxd4 {[%emt 0:03:40]} 9. Nxd4 {[%emt 0:00:15]} Bg7 {[%emt 0:00:
00]} 10. Nxc6 {[%emt 0:03:16]} bxc6 {[%emt 0:01:31]} 11. a5 {[%emt 0:02:46]}
Nf6 {[%emt 0:08:48]} 12. Bb6 {[%emt 0:02:52]} Qe7 {[%emt 0:01:09]} 13. f4 {
[%emt 0:04:22]} Bb7 {[%emt 0:08:40]} 14. O-O {[%emt 0:02:35]} c5 {[%emt 0:00:
00]} 15. Bf3 {[%emt 0:01:34]} O-O {[%emt 0:00:33]} 16. Qd2 {[%emt 0:02:27]} Ne8
{[%emt 0:22:15]} 17. Na4 {[%emt 0:06:28]} e5 {[%emt 0:04:53]} 18. f5 {[%emt 0:
00:00]} Bf6 {[%emt 0:07:44]} 19. g4 {[%emt 0:04:39]} Bg5 {[%emt 0:01:17]} 20.
Qf2 {[%emt 0:02:22]} Kh8 {[%emt 0:05:24]} 21. Rad1 {[%emt 0:08:56]} Rg8 {
[%emt 0:02:11]} 22. Kh1 {[%emt 0:02:26]} gxf5 {[%emt 0:03:34]} 23. gxf5 {
[%emt 0:00:24]} Bf4 {[%emt 0:01:18]} 24. Rg1 {[%emt 0:00:47]} Nf6 {[%emt 0:00:
00]} 25. Nc3 {[%emt 0:01:07]} Rg5 {[%emt 0:03:53]} 26. Rxg5 {[%emt 0:00:52]}
Bxg5 {[%emt 0:00:01]} 27. Rg1 {[%emt 0:00:54]} Rg8 {[%emt 0:00:09]} 28. h4 {
[%emt 0:04:03]} Bf4 {[%emt 0:01:18]} 29. Rxg8+ {[%emt 0:00:11]} Kxg8 {[%emt 0:
00:00]} 30. Qg2+ {[%emt 0:00:34]} Kh8 {[%emt 0:00:26]} 31. Ne2 {[%emt 0:02:47]}
Nxe4 {[%emt 0:01:32]} 32. Nxf4 {[%emt 0:00:54]} exf4 {[%emt 0:02:28]} 33. Kg1 {
[%emt 0:02:53]} Qxh4 {[%emt 0:01:31]} 34. c3 {[%emt 0:05:52]} Qe1+ {[%emt 0:00:
00]} 35. Kh2 {[%emt 0:00:19]} Qh4+ {[%emt 0:00:01]} 36. Kg1 {[%emt 0:00:21]} d5
{[%emt 0:00:10]} 37. c4 {[%emt 0:03:24]} Qe1+ {[%emt 0:01:29]} 38. Kh2 {
[%emt 0:00:28]} Qh4+ {[%emt 0:00:02]} 39. Kg1 {[%emt 0:00:21]} dxc4 {[%emt 0:
00:00]} 40. Bxc5 {[%emt 0:03:05]} Qe1+ {[%emt 0:00:52]} 41. Kh2 {[%emt 0:30:12]
} Qg3+ {[%emt 0:03:04]} 42. Kg1 {[%emt 0:00:00]} Nxc5 {[%emt 0:00:55]} 43. Qxg3
{[%emt 0:00:00]} fxg3 {[%emt 0:00:02]} 44. Bd1 {[%emt 0:00:00]} Kg7 {[%emt 0:
00:00]} 45. Bc2 {[%emt 0:00:00]} Kf6 {[%emt 0:00:08]} 46. Bb1 {[%emt 0:00:00]}
h5 {[%emt 0:00:10]} 47. Bc2 {[%emt 0:00:00]} h4 {[%emt 0:00:06]} 48. Bd1 {
[%emt 0:00:00]} h3 {[%emt 0:00:52]} 0-1

[Event "44th Chess Olympiad Women 2022"]
[Site "Chennai"]
[Date "2022.08.07"]
[Round "9.29"]
[White "Junior, Ednasia"]
[Black "Polterauer, Chiara"]
[Result "0-1"]
[WhiteElo "1849"]
[BlackElo "2183"]
[Annotator "RC"]
[PlyCount "76"]
[EventDate "2022.??.??"]
[TimeControl "60"]

1. e4 {[%emt 0:00:02]} e5 {[%emt 0:00:09]} 2. Nf3 {[%emt 0:00:10]} Nc6 {
[%emt 0:00:05]} 3. Bc4 {[%emt 0:00:07]} Bc5 {[%emt 0:00:12]} 4. c3 {[%emt 0:00:
00]} Nf6 {[%emt 0:00:21]} 5. d3 {[%emt 0:00:38]} a6 {[%emt 0:01:04]} 6. a4 {
[%emt 0:00:48]} d6 {[%emt 0:01:09]} 7. Bb3 {[%emt 0:00:56]} Ba7 {[%emt 0:00:59]
} 8. h3 {[%emt 0:00:48]} h6 {[%emt 0:10:22]} 9. Qe2 {[%emt 0:02:24]} Be6 {
[%emt 0:02:57]} 10. Bc2 {[%emt 0:00:29]} Ne7 {[%emt 0:01:57]} 11. d4 {[%emt 0:
00:00]} Ng6 {[%emt 0:00:42]} 12. O-O {[%emt 0:06:55]} Nh7 {[%emt 0:06:41]} 13.
Be3 {[%emt 0:12:12]} O-O {[%emt 0:04:24]} 14. Nbd2 {[%emt 0:06:00]} Qf6 {
[%emt 0:03:23]} 15. Kh2 {[%emt 0:03:12]} Nf4 {[%emt 0:12:09]} 16. Bxf4 {
[%emt 0:01:09]} Qxf4+ {[%emt 0:00:07]} 17. g3 {[%emt 0:09:01]} Qf6 {[%emt 0:00:
00]} 18. d5 {[%emt 0:01:11]} Bd7 {[%emt 0:02:31]} 19. Nh4 {[%emt 0:06:47]} c6 {
[%emt 0:12:38]} 20. dxc6 {[%emt 0:06:25]} bxc6 {[%emt 0:01:07]} 21. f4 {
[%emt 0:05:01]} Rab8 {[%emt 0:14:26]} 22. Rab1 {[%emt 0:04:08]} exf4 {[%emt 0:
00:00]} 23. Rxf4 {[%emt 0:01:26]} Qe6 {[%emt 0:00:04]} 24. Nf5 {[%emt 0:03:10]}
Kh8 {[%emt 0:00:47]} 25. Rh4 {[%emt 0:05:03]} d5 {[%emt 0:07:23]} 26. Qg4 {
[%emt 0:12:53]} Qg6 {[%emt 0:03:23]} 27. Qe2 {[%emt 0:04:59]} Rfe8 {[%emt 0:00:
00]} 28. Qxa6 {[%emt 0:01:27]} dxe4 {[%emt 0:05:41]} 29. Qxa7 {[%emt 0:00:33]}
Bxf5 {[%emt 0:00:09]} 30. Nxe4 {[%emt 0:02:00]} Rbd8 {[%emt 0:02:18]} 31. Qe3 {
[%emt 0:01:16]} Nf6 {[%emt 0:00:41]} 32. Re1 {[%emt 0:00:30]} Re7 {[%emt 0:00:
00]} 33. Qc5 {[%emt 0:01:09]} Rxe4 {[%emt 0:00:36]} 34. Bxe4 {[%emt 0:00:25]}
Nxe4 {[%emt 0:00:32]} 35. Rhxe4 {[%emt 0:00:35]} Bxe4 {[%emt 0:00:05]} 36. Re2
{[%emt 0:00:24]} Bf3 {[%emt 0:00:31]} 37. Rf2 {[%emt 0:00:30]} Qe4 {[%emt 0:00:
00]} 38. a5 {[%emt 0:00:25]} Rd1 {[%emt 0:00:23]} 0-1